bitfinex/quotes_ETHUSD_20230116
["timestamp","ask_amount","ask_price","bid_price","bid_amount"]
[1673849499760,2.37103791,1576.3,1576.1,3.208324]
[1673849499975,2.45154834,1576.4,1576.2,2.891]
[1673849500216,2.45154834,1576.4,1576.3,1.445]
[1673849500217,0.08051043,1576.4,1576.3,1.445]
[1673849500386,2.45154834,1576.4,1576.3,1.445]
[1673849501468,2.68154834,1576.4,1576.2,1.445]
[1673849501678,2.87083935,1576.3,1576.1,1.449]
[1673849503710,26.06047152,1576.3,1576.0,11.2481]
[1673849504025,20.84215483,1576.3,1576.0,11.2481]
[1673849504326,20.84215483,1576.3,1575.9,6.34527]
[1673849504327,26.96048378,1576.3,1575.9,1.449]
[1673849504501,6.34537,1576.0,1575.6,1.449]
[1673849504714,14.23,1575.9,1575.6,10.2884]
[1673849504909,3.27278678,1575.8,1575.5,100.0230675]
[1673849505118,1.82293306,1575.7,1575.5,100.0230675]
[1673849505392,8.16963306,1575.7,1575.5,100.0230675]
[1673849506137,3.27278678,1575.6,1575.5,100.0230675]
[1673849506312,15.96634678,1575.6,1575.5,100.0230675]
[1673849507138,9.61956678,1575.6,1575.5,100.0230675]
[1673849507379,9.84956678,1575.6,1575.5,100.0230675]
[1673849508314,16.19634678,1575.6,1575.5,100.0230675]
[1673849509777,16.19634678,1575.6,1575.5,99.9730675]
[1673849510440,22.54312678,1575.6,1575.5,99.9730675]
[1673849512978,23.99212678,1575.6,1575.5,99.9730675]
[1673849513188,27.81055762,1575.6,1575.5,99.9730675]
[1673849513332,25.44112678,1575.6,1575.5,99.9730675]
[1673849513548,27.81055762,1575.6,1575.5,99.9730675]
[1673849514225,22.54312678,1575.6,1575.5,99.9730675]
[1673849515284,29.76891697,1575.6,1575.5,99.9730675]
[1673849516703,19.91935019,1575.6,1575.5,99.9730675]
[1673849517123,22.51935019,1575.6,1575.5,99.9730675]
[1673849517544,9.82579019,1575.6,1575.5,99.9730675]
[1673849518036,10.05579019,1575.6,1575.5,99.9730675]
[1673849522606,16.40257019,1575.6,1575.5,99.9730675]
[1673849523076,22.74935019,1575.6,1575.5,99.9730675]
[1673849525361,22.74935019,1575.6,1575.5,93.18314884]
[1673849526620,32.36891697,1575.6,1575.5,93.18314884]
[1673849527230,33.81291697,1575.6,1575.5,93.18314884]
[1673849529497,36.18234781,1575.6,1575.5,93.18314884]
[1673849529702,38.20229708,1575.6,1575.5,93.18314884]
[1673849529913,49.20229708,1575.6,1575.5,93.18314884]
[1673849530077,54.93403173,1575.6,1575.5,93.18314884]
[1673849530289,52.56460089,1575.6,1575.5,93.18314884]
[1673849530497,54.92842697,1575.6,1575.5,93.18314884]
[1673849530942,52.56460089,1575.6,1575.5,93.18314884]
[1673849531160,54.92842363,1575.6,1575.5,93.18314884]
[1673849531332,51.26191697,1575.6,1575.5,93.18314884]
[1673849531854,41.81791697,1575.6,1575.5,93.18314884]
[1673849532083,40.13891697,1575.6,1575.5,93.18314884]
[1673849532297,32.91312678,1575.6,1575.5,93.18314884]
[1673849533432,35.49902532,1575.6,1575.5,93.18314884]
[1673849533646,29.92807605,1575.6,1575.5,93.18314884]
[1673849533871,31.60707605,1575.6,1575.5,93.18314884]
[1673849534223,33.97089879,1575.6,1575.5,93.18314884]
[1673849534631,38.97089879,1575.6,1575.5,93.18314884]
[1673849535997,36.60707605,1575.6,1575.5,93.18314884]
[1673849536218,38.97289503,1575.6,1575.5,93.18314884]
[1673849537335,36.60707605,1575.6,1575.5,93.18314884]
[1673849539385,40.18435287,1575.6,1575.5,93.18314884]
[1673849539893,37.3388107,1575.6,1575.5,93.18314884]
[1673849540741,40.18435287,1575.6,1575.5,93.18314884]
[1673849541315,40.66214045,1575.6,1575.5,93.18314884]
[1673849541588,37.3388107,1575.6,1575.5,93.18314884]
[1673849543457,40.66405829,1575.6,1575.5,93.18314884]
[1673849543669,40.65042084,1575.6,1575.5,93.18314884]
[1673849545115,40.69371101,1575.6,1575.5,93.18314884]
[1673849545567,44.23626329,1575.6,1575.5,93.18314884]
[1673849546367,41.25102283,1575.6,1575.5,93.18314884]
[1673849546816,41.25102283,1575.6,1575.5,85.32623884]
[1673849547152,41.25102283,1575.6,1575.5,73.68270884]
[1673849547320,42.68802283,1575.6,1575.5,53.68034884]
[1673849547530,38.76217325,1575.6,1575.5,37.76519884]
[1673849547763,45.67387495,1575.6,1575.5,24.75359884]
[1673849547979,45.67387495,1575.6,1575.5,14.01935884]
[1673849548566,45.67387495,1575.6,1575.5,13.09005884]
[1673849548993,41.74753378,1575.6,1575.5,10.93905884]
[1673849549784,45.67293963,1575.6,1575.5,7.85875884]
[1673849550092,43.62628311,1575.6,1575.5,7.85875884]
[1673849550248,40.64092258,1575.6,1575.5,7.85875884]
[1673849550461,39.90918793,1575.6,1575.5,7.85875884]
[1673849550704,39.90918793,1575.6,1575.5,6.92945884]
[1673849551251,39.35187611,1575.6,1575.5,6.92945884]
[1673849551442,33.14312678,1575.6,1575.5,6.92945884]
[1673849551778,33.7004386,1575.6,1575.5,6.92945884]
[1673849552392,37.02334363,1575.6,1575.5,6.92945884]
[1673849552909,37.75507828,1575.6,1575.5,6.92945884]
[1673849553406,37.02334363,1575.6,1575.5,6.92945884]
[1673849554600,37.75507828,1575.6,1575.5,6.92945884]
[1673849554789,37.02334363,1575.6,1575.5,6.92945884]
[1673849555191,36.46603181,1575.6,1575.5,6.92945884]
[1673849555404,37.19776646,1575.6,1575.5,6.92945884]
[1673849555611,36.46603181,1575.6,1575.5,6.92945884]
[1673849556071,37.02334363,1575.6,1575.5,6.92945884]
[1673849557447,33.7004386,1575.6,1575.5,6.92945884]
[1673849558026,34.43217325,1575.6,1575.5,6.92945884]
[1673849558307,38.3575791,1575.6,1575.5,6.92945884]
[1673849562470,34.43217325,1575.6,1575.5,6.92945884]
[1673849563118,29.89135009,1575.6,1575.5,6.92945884]
[1673849563293,23.56634678,1575.6,1575.5,6.92945884]
[1673849563508,17.21956678,1575.6,1575.5,6.92945884]
[1673849564040,12.21956678,1575.6,1575.5,6.92945884]
[1673849564642,15.21956678,1575.6,1575.5,6.92945884]
[1673849564898,23.44956678,1575.6,1575.5,6.92945884]
[1673849565114,26.77457009,1575.6,1575.5,6.92945884]
[1673849565330,33.12135009,1575.6,1575.5,6.92945884]
[1673849567200,39.46813009,1575.6,1575.5,5.92945884]
[1673849568954,31.46813009,1575.6,1575.5,5.92945884]
[1673849569741,28.14312678,1575.6,1575.5,5.92945884]
[1673849570323,21.79634678,1575.6,1575.5,5.92945884]
[1673849570546,24.64758451,1575.6,1575.5,5.92945884]
[1673849570973,24.64760171,1575.6,1575.5,5.92945884]
[1673849571594,24.64733236,1575.6,1575.5,5.92945884]
[1673849573826,21.79634678,1575.6,1575.5,5.92945884]
[1673849575727,25.12135009,1575.6,1575.5,5.92945884]
[1673849576252,21.79634678,1575.6,1575.5,5.92945884]
[1673849578355,25.12135009,1575.6,1575.5,5.92945884]
[1673849579828,24.6466862,1575.6,1575.5,5.92945884]
[1673849580404,18.2999062,1575.6,1575.5,5.92945884]
[1673849581009,24.6466862,1575.6,1575.5,5.92945884]
[1673849581194,25.9466862,1575.6,1575.5,5.92945884]
[1673849581349,9.50504275,1575.6,1575.5,6.52240472]
[1673849581563,3.9,1575.6,1575.5,7.97515738]
[1673849581809,14.0,1575.7,1575.6,5.863]
[1673849581998,2.85033942,1575.8,1575.6,4.807]
[1673849581999,16.37473932,1575.8,1575.6,4.807]
[1673849582209,16.37473932,1575.8,1575.7,3.363]
[1673849582415,14.0,1575.8,1575.7,3.363]
[1673849582719,16.37461036,1575.8,1575.7,3.363]
[1673849583194,16.37461036,1575.8,1575.7,1.914]
[1673849584538,16.37461036,1575.8,1575.6,1.44775242]
[1673849584742,2.3728917,1575.7,1575.6,0.00375242]
[1673849584956,2.6028917,1575.7,1575.6,0.00375242]
[1673849585186,0.23,1575.7,1575.6,0.00375242]
[1673849587965,0.23,1575.7,1575.6,3.63917174]
[1673849590069,16.3728917,1575.8,1575.6,11.43095174]
[1673849590283,16.3728917,1575.8,1575.7,3.363]
[1673849590284,16.6,1575.8,1575.7,3.363]
[1673849591549,14.0,1575.8,1575.7,9.70938]
[1673849591812,14.0,1575.8,1575.7,12.45849117]
[1673849593708,25.99165848,1575.8,1575.6,1.449]
[1673849594076,2.133,1575.7,1575.5,30.90185884]
[1673849594972,2.133,1575.7,1575.5,21.72315884]
[1673849595400,2.133,1575.7,1575.5,20.27815884]
[1673849595821,8.4794,1575.7,1575.5,20.27815884]
[1673849596032,20.47147848,1575.7,1575.5,20.27815884]
[1673849596243,14.0,1575.6,1575.5,20.27815884]
[1673849596597,22.9496717,1575.6,1575.5,20.27815884]
[1673849597214,29.2964517,1575.6,1575.5,20.27815884]
[1673849598014,32.56923848,1575.6,1575.5,20.27815884]
[1673849598237,38.91601848,1575.6,1575.5,20.27815884]
[1673849599597,43.12520085,1575.6,1575.5,20.27815884]
[1673849604024,42.3934662,1575.6,1575.5,20.27815884]
[1673849605159,42.3934662,1575.6,1575.5,20.27532509]
[1673849606164,26.84956678,1575.6,1575.5,20.27532509]
[1673849606475,29.6999062,1575.6,1575.5,20.27532509]
[1673849606626,26.84956678,1575.6,1575.5,20.27532509]
[1673849606838,29.6999062,1575.6,1575.5,20.27532509]
[1673849607264,26.84956678,1575.6,1575.5,20.27532509]
[1673849608538,17.0,1575.6,1575.5,20.27532509]
[1673849609592,23.34678,1575.6,1575.5,20.27532509]
[1673849610038,42.3934662,1575.6,1575.5,20.27532509]
[1673849610992,39.54312678,1575.6,1575.5,20.27532509]
[1673849611212,42.39249148,1575.6,1575.5,20.27532509]
[1673849613003,17.0,1575.6,1575.5,20.27532509]
[1673849613488,19.37431894,1575.6,1575.5,20.27532509]
[1673849614951,5.60431894,1575.6,1575.5,20.27532509]
[1673849615153,17.23,1575.6,1575.5,20.27532509]
[1673849615358,19.60442074,1575.6,1575.5,20.27532509]
[1673849616519,17.23,1575.6,1575.5,20.27532509]
[1673849616729,19.6044503,1575.6,1575.5,20.27532509]
[1673849623888,17.23,1575.6,1575.5,20.27532509]
[1673849624868,20.0793647,1575.6,1575.5,20.27532509]
[1673849625979,17.23,1575.6,1575.5,20.27532509]
[1673849626758,17.23,1575.6,1575.5,20.2718797]
[1673849626934,26.4261447,1575.6,1575.5,20.2718797]
[1673849627374,32.7729247,1575.6,1575.5,20.2718797]
[1673849627970,36.0475419,1575.6,1575.5,20.2718797]
[1673849628440,42.3943219,1575.6,1575.5,20.2718797]
[1673849628600,42.3943219,1575.6,1575.5,5.9231797]
[1673849628811,39.54312678,1575.6,1575.5,5.9231797]
[1673849629058,40.27486143,1575.6,1575.5,5.9231797]
[1673849630322,44.20026728,1575.6,1575.5,5.9231797]
[1673849630715,49.20026728,1575.6,1575.5,5.9231797]
[1673849634751,45.27486143,1575.6,1575.5,5.9231797]
[1673849634917,44.54312678,1575.6,1575.5,5.9231797]
[1673849636303,44.31312678,1575.6,1575.5,5.9231797]
[1673849636478,41.29279705,1575.6,1575.5,5.9231797]
[1673849637165,22.0,1575.6,1575.5,5.9231797]
[1673849637378,24.85097464,1575.6,1575.5,5.9231797]
[1673849637589,7.85097464,1575.6,1575.5,5.9231797]
[1673849637904,7.85097464,1575.6,1575.5,6.51549767]
[1673849638386,2.85097464,1575.6,1575.5,6.51549767]
[1673849639042,2.85097464,1575.7,1575.5,6.51549767]
[1673849639228,6.12376142,1575.7,1575.5,6.51549767]
[1673849639442,2.85097464,1575.7,1575.5,6.51549767]
[1673849639791,2.85097464,1575.7,1575.5,7.96449767]
[1673849640004,17.08097464,1575.6,1575.5,7.96449767]
[1673849641331,17.08097464,1575.6,1575.5,7.3721797]
[1673849641544,17.08097464,1575.6,1575.5,5.9231797]
[1673849641744,23.42775464,1575.6,1575.5,5.9231797]
[1673849642576,33.04732142,1575.6,1575.5,5.9231797]
[1673849643655,19.04732142,1575.6,1575.5,5.9231797]
[1673849644479,12.70054142,1575.6,1575.5,5.9231797]
[1673849649096,26.70054142,1575.6,1575.5,5.9231797]
[1673849650045,28.00054142,1575.6,1575.5,5.9231797]
[1673849652681,31.00054142,1575.6,1575.5,5.9231797]
[1673849657954,18.53,1575.6,1575.5,5.9231797]
[1673849658172,31.00054142,1575.6,1575.5,5.9231797]
[1673849659317,20.90588241,1575.6,1575.5,5.9231797]
[1673849660042,18.3,1575.6,1575.5,20.0575597]
[1673849660267,15.3,1575.6,1575.5,25.04318408]
[1673849660610,1.3,1575.6,1575.5,25.04318408]
[1673849660992,1.3,1575.6,1575.5,27.54318408]
[1673849661754,1.3,1575.6,1575.5,38.60716086]
[1673849661915,2.37588241,1575.9,1575.7,12.69276]
[1673849662130,2.37588241,1575.9,1575.8,4.632276]
[1673849662381,2.37588241,1575.9,1575.8,10.978256]
[1673849663224,5.37588241,1575.9,1575.8,10.978256]
[1673849663430,5.60588241,1575.9,1575.8,10.978256]
[1673849664123,3.23,1575.9,1575.8,10.978256]
[1673849664362,3.0,1575.9,1575.8,25.119216]
[1673849664572,17.0,1575.9,1575.8,25.119216]
[1673849664902,17.0,1575.9,1575.8,27.619216]
[1673849666065,17.23,1575.9,1575.8,27.619216]
[1673849666673,0.23,1575.9,1575.8,27.619216]
[1673849666858,0.23,1576.0,1575.8,27.619216]
[1673849667070,0.23,1576.1,1575.9,5.6599216]
[1673849667281,0.23,1576.1,1576.0,7.79417]
[1673849667799,1.53,1576.1,1576.0,7.79417]
[1673849668642,1.53,1576.1,1576.0,25.20629678]
[1673849668643,1.3,1576.1,1576.0,25.20629678]
[1673849668847,1.3,1576.1,1576.0,31.53256362]
[1673849670746,1.3,1576.1,1576.0,25.75977684]
[1673849671206,1.3,1576.1,1576.0,19.41460684]
[1673849671373,1.53,1576.1,1576.0,19.41460684]
[1673849674495,1.53,1576.1,1576.0,25.75977684]
[1673849674798,0.08051043,1576.4,1576.1,3.52070058]
[1673849675015,0.08051043,1576.4,1576.3,2.898]
[1673849675161,0.08051043,1576.4,1576.3,6.17078678]
[1673849675371,0.08051043,1576.4,1576.3,18.85872678]
[1673849675840,0.08051043,1576.4,1576.3,21.35872678]
[1673849676051,0.08051043,1576.4,1576.3,24.90747346]
[1673849677208,0.08051043,1576.4,1576.3,21.63468668]
[1673849677380,0.08051043,1576.4,1576.3,25.47865668]
[1673849679304,0.08051043,1576.4,1576.3,19.13468668]
[1673849679521,0.31051043,1576.4,1576.3,12.79071668]
[1673849679700,0.31051043,1576.4,1576.3,9.24197]
[1673849681806,0.31051043,1576.4,1576.3,2.898]
[1673849682147,0.31051043,1576.4,1576.2,20.47191]
[1673849682366,0.23,1576.3,1576.2,20.47191]
[1673849682523,0.23,1576.3,1576.2,14.12754]
[1673849682738,0.23,1576.3,1576.2,6.34417]
[1673849683212,0.23,1576.3,1576.2,23.62855311]
[1673849683372,0.23,1576.3,1576.2,26.12855311]
[1673849684998,0.08051043,1576.4,1576.2,26.12855311]
[1673849685161,0.08051043,1576.4,1576.3,1.449]
[1673849685366,0.31051043,1576.4,1576.3,16.63694]
[1673849685595,0.31051043,1576.4,1576.3,19.49971531]
[1673849686208,0.31051043,1576.4,1576.3,25.84368531]
[1673849686419,0.08051043,1576.4,1576.3,25.84368531]
[1673849688941,0.08051043,1576.4,1576.3,30.56147209]
[1673849689324,0.08051043,1576.6,1576.3,30.56147209]
[1673849689325,0.08051043,1576.6,1576.4,3.05614721]
[1673849689486,0.08051043,1576.6,1576.5,31.14542678]
[1673849691038,0.08051043,1576.6,1576.5,34.04342678]
[1673849691868,0.08051043,1576.6,1576.5,26.25126678]
[1673849692233,0.08051043,1576.6,1576.5,23.75126678]
[1673849692570,0.08051043,1576.6,1576.5,27.79865818]
[1673849694506,0.08051043,1576.6,1576.5,23.0768714]
[1673849694873,0.31051043,1576.6,1576.4,30.85548721]
[1673849695085,0.23,1576.5,1576.4,20.00992]
[1673849695302,2.133,1576.5,1576.4,13.6665]
[1673849695876,2.133,1576.5,1576.2,6.34417]
[1673849696351,0.23,1576.5,1576.2,6.34417]
[1673849696554,0.23,1576.5,1576.1,21.2265129]
[1673849696727,0.23,1576.5,1576.1,25.58274319]
[1673849697253,12.91637,1576.5,1576.1,14.8818229]
[1673849697708,6.57316,1576.5,1576.1,14.8818229]
[1673849698090,0.23,1576.5,1576.1,27.5712229]
[1673849701132,0.23,1576.5,1576.1,33.9159929]
[1673849701340,0.23,1576.5,1576.1,38.27220219]
[1673849702241,6.42329043,1576.6,1576.1,41.54498897]
[1673849702555,0.08051043,1576.6,1576.1,42.99398897]
[1673849703516,6.42328043,1576.6,1576.1,39.72120219]
[1673849703727,12.76605043,1576.6,1576.1,21.2264529]
[1673849703919,0.23,1576.5,1576.1,21.2264529]
[1673849704129,6.5733,1576.5,1576.1,21.2264529]
[1673849706121,0.23,1576.5,1576.1,27.5712229]
[1673849706335,0.23,1576.5,1576.2,2.75712229]
[1673849706548,0.23,1576.5,1576.2,12.68871]
[1673849706736,0.23,1576.5,1576.2,19.03308]
[1673849706964,0.23,1576.5,1576.2,19.03551301]
[1673849707353,0.23,1576.5,1576.2,21.53551301]
[1673849708629,0.23,1576.5,1576.2,22.97351301]
[1673849708842,0.23,1576.5,1576.3,4.7973513]
[1673849709086,0.23,1576.5,1576.4,6.34356]
[1673849711136,0.23,1576.5,1576.2,3.94043301]
[1673849711137,0.23,1576.5,1576.2,6.34664301]
[1673849712188,15.29243241,1576.5,1576.1,14.8818229]
[1673849712715,8.94904241,1576.5,1576.1,21.2265829]
[1673849713224,15.29243241,1576.5,1576.1,14.8818229]
[1673849713352,15.29243241,1576.5,1576.1,13.9371]
[1673849713705,15.29243241,1576.5,1576.1,20.28186]
[1673849713863,2.37588241,1576.4,1576.1,20.27955645]
[1673849714077,0.23,1576.3,1576.1,20.27955645]
[1673849714552,0.23,1576.3,1576.1,13.93479645]
[1673849716608,2.60588241,1576.3,1576.1,13.93479645]
[1673849717067,15.53752464,1576.5,1576.1,36.2442964]
[1673849717068,2.37588241,1576.5,1576.1,36.2442964]
[1673849717275,5.37588241,1576.5,1576.1,36.2442964]
[1673849717461,2.37588241,1576.5,1576.1,37.6932964]
[1673849717688,2.45639284,1576.6,1576.4,1.449]
[1673849717870,2.45639284,1576.6,1576.5,19.02948]
[1673849717871,0.08051043,1576.6,1576.5,19.02948]
[1673849718081,0.08051043,1576.6,1576.5,21.077328]
[1673849718867,0.08051043,1576.6,1576.4,15.2192]
[1673849719478,2.45639284,1576.6,1576.4,15.2192]
[1673849719870,0.23,1576.5,1576.4,15.2192]
[1673849720438,0.23,1576.5,1576.3,15.45353]
[1673849720863,0.23,1576.5,1576.3,6.34363]
[1673849721075,0.23,1576.5,1576.3,7.612418]
[1673849721862,0.23,1576.5,1576.3,10.88520478]
[1673849722101,0.08051043,1576.6,1576.4,1.449]
[1673849722310,0.08051043,1576.6,1576.5,12.68632]
[1673849723687,0.08051043,1576.6,1576.5,23.74826678]
[1673849723891,0.08051043,1576.6,1576.5,27.00741546]
[1673849724833,0.08051043,1576.6,1576.5,23.73462868]
[1673849725517,0.08051043,1576.6,1576.5,22.28862868]
[1673849725899,0.31051043,1576.6,1576.5,22.28862868]
[1673849726112,0.31051043,1576.6,1576.5,15.94546868]
[1673849727508,0.31051043,1576.6,1576.5,22.28862868]
[1673849728786,2.21351043,1576.6,1576.5,15.94546868]
[1673849728963,2.21351043,1576.6,1576.5,12.68632]
[1673849730010,0.31051043,1576.6,1576.5,12.68632]
[1673849732830,0.68939313,1576.6,1576.5,12.68632]
[1673849733881,0.45939313,1576.6,1576.5,22.30226678]
[1673849734095,0.08613797,1576.7,1576.6,23.67228]
[1673849734306,0.08613797,1576.7,1576.6,26.94506678]
[1673849734548,0.08613797,1576.7,1576.6,19.25828]
[1673849735371,0.08613797,1576.7,1576.6,6.57276]
[1673849735601,1.98913797,1576.7,1576.6,6.57276]
[1673849735928,0.31613797,1576.7,1576.6,6.57276]
[1673849736670,2.53843507,1576.7,1576.6,0.23]
[1673849737031,4.91431748,1576.7,1576.6,0.23]
[1673849745977,3.01131748,1576.7,1576.6,0.23]
[1673849753389,0.63543507,1576.7,1576.6,0.23]
[1673849753711,3.00936777,1576.7,1576.6,0.23]
[1673849755332,0.63543507,1576.7,1576.6,0.23]
[1673849755545,3.01028197,1576.7,1576.6,0.23]
[1673849755788,0.63543507,1576.7,1576.6,0.23]
[1673849756608,16.52976913,1576.7,1576.6,0.23]
[1673849756822,27.32012913,1576.7,1576.6,0.23]
[1673849757041,27.79560476,1576.7,1576.6,0.2260539]
[1673849757250,41.79560476,1576.7,1576.6,0.2260539]
[1673849759584,46.79560476,1576.7,1576.6,0.2260539]
[1673849760625,40.45324476,1576.7,1576.6,0.2260539]
[1673849760848,6.58197118,1576.7,1576.6,0.2260539]
[1673849761172,2.78013766,1576.7,1576.6,6.5688139]
[1673849761555,0.40543507,1576.7,1576.6,12.9115739]
[1673849763324,0.40543507,1576.7,1576.6,6.5688139]
[1673849763534,2.78013766,1576.7,1576.6,9.34500329]
[1673849763972,3.01013766,1576.7,1576.6,9.34500329]
[1673849764392,0.40543507,1576.7,1576.6,22.03052329]
[1673849765165,0.40543507,1576.7,1576.6,24.53052329]
[1673849768100,0.40543507,1576.7,1576.6,25.97052329]
[1673849768687,0.49542412,1576.7,1576.6,25.97052329]
[1673849772713,0.49542412,1576.7,1576.6,23.47052329]
[1673849775428,0.49542412,1576.7,1576.6,22.03052329]
[1673849776782,0.49542412,1576.7,1576.6,24.53052329]
[1673849778933,0.49304717,1576.7,1576.6,24.53052329]
[1673849779568,0.49304717,1576.7,1576.6,22.03052329]
[1673849783036,0.49304717,1576.7,1576.6,26.75231007]
[1673849783195,1e-08,1576.7,1576.6,26.75231007]
[1673849783827,0.33061104,1576.7,1576.6,29.25231007]
[1673849788906,0.33061104,1576.7,1576.6,32.25231007]
[1673849789758,0.09998449,1576.8,1576.7,21.52708]
[1673849789916,0.09998449,1576.8,1576.7,34.06776888]
[1673849790593,0.09998449,1576.8,1576.7,43.72056888]
[1673849790812,0.36440611,1576.8,1576.7,43.72056888]
[1673849791499,0.36440611,1576.8,1576.7,40.72056888]
[1673849793283,0.36440611,1576.8,1576.7,31.87820888]
[1673849793496,0.36440611,1576.8,1576.7,14.13372]
[1673849793707,0.36440611,1576.8,1576.7,20.47608]
[1673849794126,4.27221669,1577.1,1576.7,23.74886678]
[1673849794334,0.09123821,1577.2,1577.0,4.71278678]
[1673849794603,0.09123821,1577.2,1577.1,25.65531546]
[1673849795390,0.09123821,1577.2,1577.1,24.21131546]
[1673849795726,0.09123821,1577.2,1577.1,39.01091546]
[1673849797957,0.09123821,1577.2,1577.1,43.44991546]
[1673849798275,0.10309993,1577.5,1577.1,43.44991546]
[1673849798276,0.10309993,1577.5,1577.2,6.84499155]
[1673849798493,0.10309993,1577.5,1577.4,1.446]
[1673849798805,0.10309993,1577.5,1577.4,26.23740678]
[1673849799311,0.10309993,1577.5,1577.4,40.05690678]
[1673849802428,24.8656,1577.9,1577.5,5.84759075]
[1673849802639,0.12964134,1578.2,1577.9,6.69]
[1673849802899,0.12964134,1578.2,1578.0,22.28417678]
[1673849803070,0.12964134,1578.2,1578.1,3.27278678]
[1673849803267,0.13910167,1578.5,1578.1,29.25336565]
[1673849803480,0.13910167,1578.5,1578.4,1.444]
[1673849803693,0.13910167,1578.5,1578.4,23.72334678]
[1673849803694,0.03910167,1578.5,1578.4,23.72334678]
[1673849804116,0.03910167,1578.5,1578.4,26.22334678]
[1673849804322,0.03910167,1578.5,1578.4,32.91334678]
[1673849804533,0.03910167,1578.5,1578.4,34.74113846]
[1673849804804,0.03910167,1578.5,1578.4,48.72463846]
[1673849806099,0.03910167,1578.5,1578.4,46.22463846]
[1673849806274,0.03910167,1578.5,1578.4,41.78063846]
[1673849808359,0.03910167,1578.5,1578.4,40.33163846]
[1673849809863,1.94210167,1578.5,1578.1,4.11711887]
[1673849810078,1.94210167,1578.5,1578.0,27.60436]
[1673849810079,0.23,1578.4,1578.0,27.60436]
[1673849810268,6.56559,1578.4,1577.7,6.3383]
[1673849810494,6.33559,1578.4,1577.8,18.20288678]
[1673849810685,0.23,1578.3,1577.8,18.20288678]
[1673849811088,2.5,1578.2,1577.8,18.20288678]
[1673849811298,2.24336952,1578.3,1577.8,18.20288678]
[1673849811567,4.673,1578.3,1577.8,20.65700546]
[1673849811787,1.673,1578.3,1577.8,20.65700546]
[1673849811930,8.00897,1578.3,1577.8,20.65700546]
[1673849813029,14.34494,1578.3,1577.8,20.65700546]
[1673849813249,14.34494,1578.3,1577.8,26.99490546]
[1673849813788,12.90194,1578.3,1577.9,2.69949055]
[1673849818988,12.90194,1578.3,1577.8,39.66999546]
[1673849822455,12.90194,1578.3,1577.6,0.05546064]
[1673849822456,6.27278678,1578.2,1577.6,0.05546064]
[1673849822714,12.67586,1577.8,1577.6,0.05546064]
[1673849822918,2.133,1577.7,1577.6,0.05546064]
[1673849823111,5.133,1577.7,1577.6,0.05546064]
[1673849823301,11.47134,1577.7,1577.6,0.05546064]
[1673849823509,19.25268,1577.7,1577.6,0.05546064]
[1673849823772,28.70168,1577.7,1577.6,0.05546064]
[1673849824303,30.56620191,1577.7,1577.6,0.05546064]
[1673849825092,28.70168,1577.7,1577.6,0.05546064]
[1673849825307,3.23,1577.7,1577.6,0.05546064]
[1673849825516,0.23,1577.7,1577.6,0.05546064]
[1673849825781,2.133,1577.7,1577.6,0.05546064]
[1673849826000,2.6463,1577.7,1577.6,0.05546064]
[1673849826150,11.98464,1577.7,1577.6,0.05546064]
[1673849826367,13.42764,1577.7,1577.6,0.05546064]
[1673849826733,15.92764,1577.7,1577.6,0.05546064]
[1673849826908,22.26598,1577.7,1577.6,0.05546064]
[1673849827104,19.76598,1577.7,1577.6,0.05546064]
[1673849827498,22.26598,1577.7,1577.6,0.05343643]
[1673849830045,21.06598,1577.7,1577.6,0.05343643]
[1673849830254,20.55268,1577.7,1577.6,0.05343643]
[1673849830480,14.16434,1577.7,1577.6,0.05343643]
[1673849831826,16.66434,1577.7,1577.6,0.05343643]
[1673849832500,23.00268,1577.7,1577.6,0.05343643]
[1673849832711,20.50268,1577.7,1577.6,0.05343643]
[1673849832929,23.00268,1577.7,1577.6,0.05343643]
[1673849834470,29.34102,1577.7,1577.6,0.05343643]
[1673849835632,4.3,1577.7,1577.6,0.05343643]
[1673849835977,4.3,1577.7,1577.6,1.79243643]
[1673849836132,4.3,1577.7,1577.6,0.05343643]
[1673849836344,4.3,1577.7,1577.6,0.69269107]
[1673849838079,1.3,1577.7,1577.6,0.69269107]
[1673849838247,4.3,1577.7,1577.6,0.69269107]
[1673849838895,1.3,1577.7,1577.6,0.69269107]
[1673849839115,1.3,1577.7,1577.6,13.37017107]
[1673849839452,1.3,1577.7,1577.6,14.81917107]
[1673849843509,1.3,1577.7,1577.6,8.48043107]
[1673849844148,1.3,1577.7,1577.6,2.14169107]
[1673849844697,1.3,1577.7,1577.6,0.69269107]
[1673849845559,1.3,1577.7,1577.6,0.05343643]
[1673849846925,7.63834,1577.7,1577.6,0.05343643]
[1673849848293,19.20668,1577.7,1577.6,0.05343643]
[1673849848507,25.54502,1577.7,1577.6,0.05343643]
[1673849849292,26.98902,1577.7,1577.6,0.05343643]
[1673849849516,29.36372259,1577.7,1577.6,0.05343643]
[1673849850921,29.36372259,1577.7,1577.6,0.05075579]
[1673849851956,26.98902,1577.7,1577.6,0.05075579]
[1673849852173,27.77522037,1577.7,1577.6,0.05075579]
[1673849852906,26.98902,1577.7,1577.6,0.05075579]
[1673849855605,24.98902,1577.7,1577.6,0.05075579]
[1673849856658,27.48902,1577.7,1577.6,0.05075579]
[1673849857348,33.61189262,1577.7,1577.6,0.05075579]
[1673849857638,50.32345742,1577.7,1577.6,0.05075579]
[1673849858853,55.32345742,1577.7,1577.6,0.05075579]
[1673849859752,63.38634814,1577.7,1577.6,0.05075579]
[1673849859927,62.35624954,1577.7,1577.6,0.05075579]
[1673849860130,63.26550162,1577.7,1577.6,5.79e-06]
[1673849860326,2.5,1577.6,1577.1,0.05546064]
[1673849860537,2.37137083,1577.2,1577.1,0.05546064]
[1673849860805,21.39239083,1577.2,1577.1,0.05546064]
[1673849861108,21.62239083,1577.2,1577.1,0.05546064]
[1673849861635,20.55102,1577.2,1577.1,0.05546064]
[1673849862903,22.92239083,1577.2,1577.1,0.05546064]
[1673849863592,20.55102,1577.2,1577.1,0.05546064]
[1673849863800,22.92239083,1577.2,1577.1,0.05546064]
[1673849864061,20.55102,1577.2,1577.1,0.05546064]
[1673849864426,22.92239083,1577.2,1577.1,0.05546064]
[1673849864645,14.21068,1577.2,1577.1,0.05546064]
[1673849867710,20.55102,1577.2,1577.1,0.05546064]
[1673849868747,22.92239083,1577.2,1577.1,0.05546064]
[1673849870432,14.21068,1577.2,1577.1,0.05546064]
[1673849872575,20.55102,1577.2,1577.1,0.05546064]
[1673849877362,23.05102,1577.2,1577.1,0.05546064]
[1673849878158,25.42239083,1577.2,1577.1,0.05546064]
[1673849878836,38.39672322,1577.2,1577.1,0.05546064]